fUST/lending_fUST_20240530
["ID","MTS","AMOUNT","RATE_DAILY","PERIOD"]
[328174595,1717001433188,-166.666666,0.00022431,2]
[328174598,1717001433199,-2688.65594362,0.00022897,2]
[328174600,1717001433211,-166.666666,0.00022944,2]
[328174602,1717001433221,-166.666666,0.00023456,2]
[328174604,1717001433233,-509.75230047,0.00023863,2]
[328174606,1717001433244,-166.666666,0.00023969,2]
[328174608,1717001433254,-200.0,0.0002411,2]
[328174610,1717001433265,-635.78727,0.00024384,2]
[328174612,1717001433277,-166.666666,0.00024482,2]
[328174614,1717001433286,-150.0,0.000265,2]
[328174616,1717001433296,-761.53155768,0.000266,2]
[328174618,1717001433306,-761.53155768,0.000266,2]
[328174620,1717001433316,-150.06880262,0.00026601,2]
[328174622,1717001433325,-150.06880262,0.00026769,2]
[328174624,1717001433336,-578.124765,0.00026839,2]
[328174627,1717001433347,-153.89,0.000274,3]
[328174629,1717001433358,-153.89,0.000274,3]
[328174631,1717001433369,-153.89,0.000274,3]
[328174633,1717001433379,-153.89,0.000274,3]
[328174635,1717001433390,-150.06880262,0.0002754,2]
[328174637,1717001433401,-150.06880262,0.00027566,2]
[328174639,1717001433413,-150.06880262,0.0002761,2]
[328174641,1717001433422,-150.06880262,0.00028092,2]
[328174643,1717001433432,-150.06880262,0.00028321,2]
[328174646,1717001433442,-293.97500476,0.00028905,2]
[328174648,1717001433452,-509.75230047,0.00029001,2]
[328174650,1717001433463,-153.89,0.000292,3]
[328174652,1717001433474,-153.89,0.000292,3]
[328174654,1717001433485,-153.89,0.000292,3]
[328174656,1717001433496,-153.89,0.000292,3]
[328174658,1717001433506,-151.0,0.00029684,7]
[328174661,1717001433519,-1338.7830707,0.0003,4]
[328174663,1717001433529,-150.06880262,0.00030066,7]
[328174665,1717001433539,-500.0,0.00030136,4]
[328174667,1717001433548,-500.0,0.00030136,4]
[328174669,1717001433559,-500.0,0.00030136,4]
[328174671,1717001433569,-500.0,0.00030136,4]
[328174673,1717001433579,-500.0,0.00030136,4]
[328174675,1717001433589,-500.0,0.00030136,4]
[328174677,1717001433599,-500.0,0.00030136,4]
[328174679,1717001433610,-500.0,0.00030136,4]
[328174680,1717001433620,-500.0,0.00030136,4]
[328174682,1717001433631,-154.6261876,0.00030219,2]
[328174684,1717001433641,-153.0,0.00030219,2]
[328174686,1717001433651,-153.0,0.00030219,2]
[328174687,1717001433661,-153.0,0.00030219,2]
[328174688,1717001433671,-153.0,0.00030219,2]
[328174689,1717001433681,-635.78727,0.0003031,2]
[328174691,1717001433692,-6480.07,0.00030348,3]
[328174693,1717001433702,-7776.08,0.00030358,3]
[328174694,1717001433712,-4685.64,0.00030368,3]
[328174695,1717001433722,-9331.3,0.00030368,3]
[328174696,1717001433733,-519.23607604,0.00030377,4]
[328174697,1717001433747,-999.63689439,0.00030377,4]
[328174698,1717001434276,273.37336231,9.9e-05,2]
[328174701,1717001438728,-500.0,0.00020912,2]
[328174702,1717001438738,-133.69415174,0.00020912,2]
[328174706,1717001438801,-366.30584826,0.00020912,2]
[328174707,1717001438811,-38.24348924,0.00020912,2]
[328174708,1717001438823,-461.75651076,0.00020912,2]
[328174710,1717001438833,-500.0,0.00020912,2]
[328174712,1717001438843,-500.0,0.00020912,2]
[328174713,1717001438852,-500.0,0.00020912,2]
[328174714,1717001438861,-500.0,0.00020912,2]
[328174715,1717001438872,-500.0,0.00020912,2]
[328174716,1717001438881,-546.79187813,0.00020912,2]
[328174717,1717001438891,-500.0,0.00020912,2]
[328174718,1717001438900,-500.0,0.00020912,2]
[328174719,1717001438914,-500.0,0.00020912,2]
[328174720,1717001438923,-23287.19690113,0.00030377,4]
[328174721,1717001438933,-2100.75003743,0.00030378,7]
[328174722,1717001438943,-6395.65231069,0.00030378,2]
[328174729,1717001441960,151.0,9.9e-05,2]
[328174740,1717001442572,-5400.05,0.00030368,3]
[328174741,1717001442582,-21263.67011999,0.00030378,2]
[328174767,1717001444602,-4373.28192025,0.00030378,2]
[328174768,1717001444963,-1383.80306551,0.00030378,2]
[328174770,1717001444978,-2445.13019853,0.00030378,2]
[328174773,1717001444994,-1293.72255539,0.00030378,2]
[328174775,1717001445005,-2256.92096665,0.00030378,2]
[328174777,1717001445017,-2127.499985,0.00030378,2]
[328174789,1717001469874,720.99508433,9.999e-05,2]
[328174790,1717001471983,156.63274877,9.999e-05,2]
[328174791,1717001491269,316.86475702,9.999e-05,2]
[328174792,1717001498976,154.82968734,0.000137,2]
[328174793,1717001506019,302.71490703,9.999e-05,2]
[328174794,1717001509847,607.98978105,9.999e-05,2]
[328174795,1717001509866,545.29534791,9.999e-05,2]
[328174796,1717001523621,154.82968734,9.999e-05,2]
[328174797,1717001541547,456.0641796,9.999e-05,2]
[328174799,1717001742451,154.82968734,9.992e-05,2]
[328174800,1717001750442,157.42828945,9.992e-05,2]
[328174801,1717001787428,2682.52983983,9.992e-05,2]
[328174802,1717001806101,2005.21218338,9.992e-05,2]
[328174803,1717001828341,239.12476103,9.99e-05,2]
[328175103,1717001879935,3667.68338259,9.99e-05,2]
[328175106,1717001879965,2500.0,9.99e-05,2]
[328175495,1717001959997,154.82968734,9.985e-05,2]
[328175496,1717001967818,1498.63618319,9.985e-05,2]
[328175497,1717001974012,156.63274877,9.985e-05,2]
[328175498,1717001979809,1154.69083324,9.985e-05,2]
[328175499,1717001980004,155.25713698,9.985e-05,2]
[328175500,1717001994009,294.77689513,9.985e-05,2]
[328175501,1717002003827,1585.17651535,9.985e-05,2]
[328175502,1717002085461,10523.03699959,9.98e-05,2]
[328175503,1717002127782,395.87754993,9.98e-05,2]
[328175504,1717002129413,154.82968734,9.98e-05,2]
[328175505,1717002136249,154.82968734,9.979e-05,2]
[328175506,1717002320852,150.699999,9.99e-05,5]
[328175507,1717002327210,8482.97041854,9.979e-05,2]
[328175508,1717002431166,-412.70094149,9.898e-05,2]
[328175509,1717002437098,-782.2997523,9.898e-05,2]
[328175510,1717002444164,-160.41800127,9.898e-05,2]
[328175511,1717002452103,-761.97357166,9.898e-05,2]
[328175512,1717002452124,-1127.9176166,9.899e-05,2]
[328175513,1717002452145,-19.08085157,9.976e-05,2]
[328175514,1717002551132,-8182.59932602,9.898e-05,2]
[328175515,1717002551155,-181.39757211,9.9e-05,2]
[328175516,1717002551175,-181.39757211,9.9e-05,2]
[328175517,1717002551204,-181.39757211,9.9e-05,2]
[328175518,1717002551229,-181.39757,9.9e-05,2]
[328175519,1717002551255,-646.33410805,9.998e-05,2]
[328175520,1717002551277,-1462.5334981,9.999e-05,2]
[328175521,1717002551298,-205.05097895,9.999e-05,2]
[328175522,1717002551323,-1277.04869783,0.00010315,2]
[328175523,1717002555115,-432.81203987,0.00010315,2]
[328175524,1717002555135,-156.68308505,0.00011314,2]
[328175525,1717002555155,-253.87302203,0.00011315,2]
[328175526,1717002555176,-24900.0,0.00011316,2]
[328175527,1717002555196,-388.363831,0.00011796,2]
[328175528,1717002555215,-154.95346446,0.00013697,2]
[328175529,1717002555236,-533.34178598,0.00013697,2]
[328175530,1717002555259,-155.21665942,0.00013697,2]
[328175531,1717002555281,-2691.83924228,0.00013698,2]
[328175532,1717002555301,-309.144753,0.00013699,2]
[328175533,1717002555321,-4010.1561376,0.00013699,2]
[328175534,1717002555491,-1562.02190912,0.00013994,2]
[328175535,1717002555513,-422.42179,0.000149,2]
[328175536,1717002555533,-2405.49566351,0.00015,2]
[328175537,1717002555570,3000.0,0.00013699,2]
[328175538,1717002560136,-858.71077338,0.0001872,2]
[328175539,1717002560156,-189.84803191,0.00018723,2]
[328175540,1717002560175,-2380.12324239,0.00018818,2]
[328175541,1717002569097,-243.06587662,0.00018817,2]
[328175565,1717002633627,-187.82352874,0.00018817,2]
[328175566,1717002633637,-410.496682,0.00018817,2]
[328175567,1717002633647,-3859.88653013,0.00018818,2]
[328175568,1717002633659,-8436.8001,0.00018818,2]
[328175569,1717002633671,-3000.563174,0.00018818,2]
[328175605,1717002637998,-4399.9953912,0.00018818,2]
[328175607,1717002638010,-672.82978133,0.00018818,2]
[328175609,1717002638019,-4599.89700882,0.0001882,2]
[328175611,1717002638031,-1129.24394627,0.0001882,2]
[328175613,1717002638042,-6984.22240064,0.0001882,2]
[328175615,1717002638055,-841.90899467,0.0001882,2]
[328175618,1717002638067,-853.44873955,0.0001882,2]
[328175619,1717002638077,-244.9068445,0.000189,2]
[328175623,1717002638106,-516.8978334,0.000189,2]
[328175625,1717002638116,-367.8,0.00019168,3]
[328175627,1717002638125,-422.42178997,0.00019747,2]
[328175629,1717002638135,-309.144753,0.00020548,2]
[328175630,1717002638144,-858.71077337,0.00020745,2]
[328175632,1717002638154,-2108.64763921,0.00020891,2]
[328175634,1717002638163,-255.94975755,0.00020913,2]
[328175636,1717002638172,-258.48928568,0.00020913,2]
[328175638,1717002638181,-260.48170104,0.00020913,2]
[328175641,1717002638190,-500.0,0.00020913,2]
[328175643,1717002638199,-540.61368806,0.00020913,2]
[328175644,1717002638208,-500.0,0.00020913,2]
[328175646,1717002638217,-500.0,0.00020913,2]
[328175648,1717002638226,-500.0,0.00020913,2]
[328175650,1717002638235,-500.0,0.00020913,2]
[328175652,1717002638244,-500.0,0.00020913,2]
[328175653,1717002638253,-500.0,0.00020913,2]
[328175655,1717002638263,-500.0,0.00020913,2]
[328175657,1717002638275,-500.0,0.00020913,2]
[328175659,1717002638284,-500.0,0.00020913,2]
[328175661,1717002638293,-542.06941082,0.00020913,2]
[328175663,1717002638303,-500.0,0.00020913,2]
[328175664,1717002638313,-500.0,0.00020913,2]
[328175666,1717002638323,-500.0,0.00020913,2]
[328175668,1717002638331,-500.0,0.00020913,2]
[328175670,1717002638340,-500.0,0.00020913,2]
[328175672,1717002638353,-500.0,0.00020913,2]
[328175674,1717002638363,-500.0,0.00020913,2]
[328175676,1717002638372,-500.0,0.00020913,2]
[328175678,1717002638381,-500.0,0.00020913,2]
[328175680,1717002638390,-500.0,0.00020913,2]
[328175681,1717002638399,-500.0,0.00020913,2]
[328175682,1717002638408,-500.0,0.00020913,2]
[328175683,1717002638416,-500.0,0.00020913,2]
[328175684,1717002638425,-500.0,0.00020913,2]
[328175685,1717002638434,-500.0,0.00020913,2]
[328175686,1717002638444,-500.0,0.00020913,2]
[328175687,1717002638452,-500.0,0.00020913,2]
[328175688,1717002638461,-500.0,0.00020913,2]
[328175689,1717002638470,-500.0,0.00020913,2]
[328175690,1717002638479,-500.0,0.00020913,2]
[328175691,1717002638487,-500.0,0.00020913,2]
[328175692,1717002638496,-500.0,0.00020913,2]
[328175693,1717002638505,-239.00629442,0.00020913,2]
[328175694,1717002638514,-173.297211,0.00021918,2]
[328175695,1717002638523,-173.297211,0.00022559,2]
[328175696,1717002638531,-858.71077337,0.0002277,2]
[328175697,1717002638540,-1137.49756825,0.00022782,2]
[328175698,1717002638550,-173.297211,0.000232,2]
[328175699,1717002638558,-173.297211,0.00023841,2]
[328175700,1717002638567,-761.8046779,0.000239,2]
[328175701,1717002638576,-572.208543,0.00024384,2]
[328175702,1717002638585,-173.297211,0.00024482,2]
[328175703,1717002638594,-422.42178997,0.00024595,2]
[328175705,1717002638602,-858.71077337,0.00024795,2]
[328175706,1717002638611,-456.717891,0.00025,2]
[328175707,1717002638621,-761.26183516,0.00025,2]
[328175709,1717002638630,-300.9205413,0.00026493,2]
[328175711,1717002638640,-3000.0,0.000265,2]
[328175713,1717002638649,-3000.0,0.0002651,2]
[328175714,1717002638658,-157.38741807,0.00026518,2]
[328175715,1717002638668,-155.3256148,0.00026519,2]
[328175716,1717002638677,-3000.0,0.0002652,2]
[328175717,1717002638687,-3000.0,0.0002653,2]
[328175719,1717002638696,-223.36402048,0.00026539,2]
[328175721,1717002638708,-170.33580056,0.00026539,2]
[328175723,1717002638718,-1478.83361442,0.0002654,2]
[328175725,1717002638729,-1521.16638558,0.0002654,2]
[328175726,1717002638738,-3000.0,0.0002655,2]
[328175727,1717002638747,-1378.83361446,0.0002656,2]
[328175742,1717002643230,-1621.16638554,0.0002656,2]
[328175743,1717002643240,-8558.7,0.0002656,3]
[328175744,1717002643250,-3000.0,0.0002657,2]
[328175745,1717002643261,-4998.19,0.0002657,3]
[328175746,1717002643274,-3000.0,0.0002658,2]
[328175747,1717002643283,-3000.0,0.0002659,2]
[328175748,1717002643292,-761.53155768,0.000266,2]
[328175749,1717002643304,-3000.0,0.000266,2]
[328175750,1717002643316,-7132.25,0.000266,3]
[328175751,1717002643326,-3000.0,0.0002661,2]
[328175752,1717002643335,-3000.0,0.0002662,2]
[328175753,1717002643345,-3000.0,0.0002663,2]
[328175754,1717002643355,-3000.0,0.00026639,2]
[328175755,1717002643365,-1923.63830344,0.00026639,2]
[328175756,1717002643374,-3000.0,0.0002664,2]
[328175757,1717002643383,-3000.0,0.0002665,2]
[328175758,1717002643392,-3000.0,0.0002666,2]
[328175759,1717002643402,-300.9205413,0.00026662,2]
[328175760,1717002643411,-3000.0,0.0002667,2]
[328175761,1717002643420,-3000.0,0.0002668,2]
[328175762,1717002643430,-3000.0,0.0002669,2]
[328175763,1717002643439,-3000.0,0.000267,2]
[328175764,1717002643450,-3000.0,0.0002671,2]
[328175765,1717002643460,-3000.0,0.0002672,2]
[328175766,1717002643469,-3000.0,0.0002673,2]
[328175767,1717002643478,-3000.0,0.0002674,2]
[328175768,1717002643487,-489.34556427,0.00026748,2]
[328175769,1717002643496,-3000.0,0.0002675,2]
[328175770,1717002643505,-3000.0,0.0002676,2]
[328175771,1717002643514,-3000.0,0.0002677,2]
[328175772,1717002643524,-3000.0,0.0002678,2]
[328175773,1717002643533,-3000.0,0.0002679,2]
[328175775,1717002643543,-10684.328221,0.000268,2]
[328175777,1717002643553,-3000.0,0.000268,2]
[328175779,1717002643562,-160.0,0.000268,2]
[328175780,1717002643570,-3000.0,0.0002681,2]
[328175782,1717002643579,-3000.0,0.0002682,2]
[328175783,1717002643589,-858.71077337,0.0002682,2]
[328175784,1717002643598,-3000.0,0.0002683,2]
[328175785,1717002643606,-3000.0,0.0002684,2]
[328175786,1717002643616,-1050.37501872,0.0002685,7]
[328175787,1717002643624,-3000.0,0.0002685,2]
[328175789,1717002643633,-3000.0,0.0002686,2]
[328175791,1717002643643,-151.0,0.0002686,2]
[328175793,1717002643652,-386.947126,0.0002686,2]
[328175795,1717002643662,-386.947126,0.0002686,2]
[328175797,1717002643671,-982.209705,0.0002686,2]
[328175798,1717002643680,-982.209705,0.0002686,2]
[328175800,1717002643690,-286.015299,0.0002686,2]
[328175802,1717002643699,-151.0,0.0002686,2]
[328175804,1717002643709,-1138.614795,0.0002686,2]
[328175806,1717002643718,-1138.614795,0.0002686,2]
[328175808,1717002643727,-3000.0,0.0002687,2]
[328175810,1717002643736,-3000.0,0.0002688,2]
[328175812,1717002643746,-3000.0,0.0002689,2]
[328175814,1717002643755,-3000.0,0.000269,2]
[328175816,1717002643764,-3000.0,0.0002691,2]
[328175818,1717002643774,-151.0,0.0002692,2]
[328175820,1717002643783,-151.0,0.0002692,2]
[328175822,1717002643792,-151.0,0.0002692,2]
[328175824,1717002643803,-477.250238,0.0002692,2]
[328175826,1717002643812,-477.250238,0.0002692,2]
[328175828,1717002643821,-151.0,0.0002692,2]
[328175830,1717002643830,-5442.835143,0.0002692,2]
[328175831,1717002643839,-151.0,0.0002692,2]
[328175832,1717002643848,-151.0,0.0002692,2]
[328175833,1717002643857,-151.0,0.0002692,2]
[328175834,1717002643866,-166.860849,0.0002692,2]
[328175835,1717002643876,-276.727778,0.0002692,2]
[328175836,1717002643885,-276.727778,0.0002692,2]
[328175837,1717002643894,-166.860849,0.0002692,2]
[328175838,1717002643903,-151.0,0.0002692,2]
[328175839,1717002643912,-151.0,0.0002692,2]
[328175840,1717002643921,-151.0,0.0002692,2]
[328175841,1717002643930,-577.57308,0.0002692,2]
[328175842,1717002643939,-577.57308,0.0002692,2]
[328175843,1717002643948,-155.605394,0.0002692,2]
[328175844,1717002643957,-155.605394,0.0002692,2]
[328175845,1717002643966,-659.841471,0.0002692,2]
[328175846,1717002643975,-659.841471,0.0002692,2]
[328175847,1717002643984,-300.9205413,0.00027072,2]
[328175848,1717002643994,-90910.02544581,0.00027117,2]
[328175849,1717002644003,-151.0,0.00027117,2]
[328175850,1717002644014,-386.947126,0.00027117,2]
[328175851,1717002644023,-386.947126,0.00027117,2]
[328175852,1717002644034,-982.209705,0.00027117,2]
[328175853,1717002644043,-982.209705,0.00027117,2]
[328175854,1717002644053,-151.0,0.00027117,2]
[328175855,1717002644062,-1138.614795,0.00027117,2]
[328175856,1717002644071,-1138.614795,0.00027117,2]
[328175857,1717002644080,-489.34556427,0.00027119,2]
[328175858,1717002644092,-489.34556427,0.00027284,2]
[328175859,1717002644102,-320.0,0.00027348,2]
[328175860,1717002644112,-500.0,0.00027397,2]
[328175861,1717002644121,-500.0,0.00027397,2]
[328175862,1717002644130,-500.0,0.00027397,2]
[328175863,1717002644139,-500.0,0.00027397,2]
[328175864,1717002644148,-500.0,0.00027397,2]
[328175865,1717002644157,-500.0,0.00027397,2]
[328175866,1717002644167,-500.0,0.00027397,2]
[328175867,1717002644176,-500.0,0.00027397,2]
[328175868,1717002644186,-500.0,0.00027397,2]
[328175869,1717002644196,-500.0,0.00027397,2]
[328175870,1717002644206,-500.0,0.00027397,2]
[328175871,1717002644215,-500.0,0.00027397,2]
[328175872,1717002644224,-500.0,0.00027397,2]
[328175873,1717002644234,-500.0,0.00027397,2]
[328175874,1717002644243,-500.0,0.00027397,2]
[328175875,1717002644253,-500.0,0.00027397,2]
[328175876,1717002644265,-500.0,0.00027397,2]
[328175877,1717002644275,-500.0,0.00027397,2]
[328175878,1717002644284,-500.0,0.00027397,2]
[328175879,1717002644293,-325.1735941,0.00027397,2]
[328175880,1717002644303,-500.0,0.00027397,2]
[328175881,1717002644312,-499.99999999,0.00027397,2]
[328175882,1717002644321,-151.0,0.00027397,2]
[328175883,1717002644330,-280.91961421,0.00027397,2]
[328175884,1717002644340,-233.514913,0.00027397,2]
[328175885,1717002644351,-233.514913,0.00027397,2]
[328175886,1717002644361,-151.0,0.00027397,2]
[328175887,1717002644372,-151.0,0.00027397,2]
[328175888,1717002644384,-253.908063,0.00027397,2]
[328175889,1717002644395,-253.908063,0.00027397,2]
[328175890,1717002644405,-365.530466,0.00027397,2]
[328175891,1717002644514,-151.0,0.00027397,2]
[328175892,1717002644523,-365.530466,0.00027397,2]
[328175893,1717002644532,-1959.86597,0.00027397,2]
[328175894,1717002644541,-1959.86597,0.00027397,2]
[328175895,1717002644553,-792.724988,0.00027397,2]
[328175896,1717002644562,-792.724988,0.00027397,2]
[328175897,1717002644571,-151.0,0.00027397,2]
[328175898,1717002644580,-151.0,0.00027397,2]
[328175899,1717002644589,-151.0,0.00027397,2]
[328175900,1717002644599,-151.0,0.00027397,2]
[328175901,1717002644608,-151.0,0.00027397,2]
[328175902,1717002644617,-151.0,0.00027397,2]
[328175903,1717002644627,-159.469878,0.00027397,2]
[328175904,1717002644636,-151.0,0.00027397,2]
[328175905,1717002644645,-151.0,0.00027397,2]
[328175906,1717002644654,-151.0,0.00027397,2]
[328175907,1717002644663,-151.0,0.00027397,2]
[328175908,1717002644672,-1682.971842,0.00027397,2]
[328175909,1717002644681,-1682.971842,0.00027397,2]
[328175910,1717002644690,-151.08854,0.00027397,2]
[328175911,1717002644699,-151.08854,0.00027397,2]
[328175912,1717002644708,-500.0,0.00027397,2]
[328175913,1717002644717,-500.0,0.00027397,2]
[328175914,1717002644727,-191.98374232,0.00027397,2]
[328175915,1717002644735,-500.0,0.00027397,2]
[328175916,1717002644745,-500.0,0.00027397,2]
[328175917,1717002644754,-500.0,0.00027397,2]
[328175918,1717002644763,-500.0,0.00027397,2]
[328175919,1717002644773,-500.0,0.00027397,2]
[328175920,1717002644783,-500.0,0.00027397,2]
[328175921,1717002644792,-500.0,0.00027397,2]
[328175922,1717002644801,-500.0,0.00027397,2]
[328175923,1717002644810,-500.0,0.00027397,2]
[328175924,1717002644819,-500.0,0.00027397,2]
[328175925,1717002644828,-500.0,0.00027397,2]
[328175926,1717002644838,-500.0,0.00027397,2]
[328175927,1717002644846,-500.0,0.00027397,2]
[328175928,1717002644855,-198.8343156,0.000274,2]
[328175929,1717002644865,-153.95,0.000274,3]
[328175930,1717002644874,-153.95,0.000274,3]
[328175931,1717002644883,-151.0,0.00027411,7]
[328175932,1717002644892,-151.0,0.00027481,2]
[328175933,1717002644902,-151.0,0.00027481,2]
[328175934,1717002644911,-489.34556427,0.00027579,2]
[328175935,1717002644921,-300.9205413,0.0002763,2]
[328175936,1717002644930,-202.4777737,0.00027671,2]
[328175937,1717002644939,-489.34556427,0.00027731,2]
[328175938,1717002644948,-489.34556427,0.00027859,2]
[328175939,1717002644958,-296.04895222,0.00027896,2]
[328175940,1717002644967,-300.9205413,0.00027994,2]
[328175941,1717002644976,-418.18940771,0.00028,2]
[328175942,1717002644985,-221.83484626,0.00028,2]
[328175943,1717002644995,-489.34556427,0.00028058,2]
[328175944,1717002645004,-300.9205413,0.00028119,2]
[328175945,1717002645014,-489.34556427,0.00028147,2]
[328175946,1717002645023,-489.34556427,0.00028149,2]
[328175947,1717002645033,-300.9205413,0.00028187,2]
[328175948,1717002645042,-300.9205413,0.00028433,2]
[328175949,1717002645052,-489.34556427,0.00028483,2]
[328175950,1717002645062,-151.0,0.00028495,7]
[328175951,1717002645071,-620.11263593,0.00028518,2]
[328175952,1717002645080,-153.0,0.00028533,2]
[328175953,1717002645089,-489.34556427,0.00028711,2]
[328175954,1717002645098,-300.9205413,0.0002873,2]
[328175955,1717002645107,-481.0,0.0002877,6]
[328175956,1717002645117,-761.8046779,0.000289,2]
[328175957,1717002645126,-300.9205413,0.00028973,2]
[328175958,1717002645136,-489.34556427,0.00029009,2]
[328175959,1717002645145,-153.95,0.000292,3]
[328175960,1717002645154,-153.95,0.000292,3]
[328175961,1717002645163,-153.0,0.0002926,2]
[328175962,1717002645173,-153.0,0.0002926,2]
[328175963,1717002645182,-153.0,0.0002926,2]
[328175964,1717002645191,-153.0,0.0002926,2]
[328175965,1717002645201,-489.34556427,0.00029262,2]
[328175966,1717002645210,-300.9205413,0.0002932,2]
[328175967,1717002645219,-422.42178997,0.00029442,2]
[328175968,1717002645228,-300.9205413,0.00029534,2]
[328175969,1717002645238,-151.0,0.0002958,7]
[328175970,1717002645247,-489.34556427,0.00029609,2]
[328175971,1717002645256,-300.9205413,0.00029742,2]
[328175972,1717002645266,-301.1271294,0.000299,2]
[328175973,1717002645279,-151.0,0.00029936,2]
[328175974,1717002645290,-151.0,0.00029936,2]
[328175975,1717002645299,-151.0,0.00029936,2]
[328175976,1717002645309,-151.0,0.00029936,2]
[328175977,1717002645319,-166.860849,0.00029936,2]
[328175978,1717002645328,-276.727778,0.00029936,2]
[328175979,1717002645337,-166.860849,0.00029936,2]
[328175980,1717002645347,-276.727778,0.00029936,2]
[328175981,1717002645358,-151.0,0.00029936,2]
[328175982,1717002645367,-151.0,0.00029936,2]
[328175983,1717002645376,-151.0,0.00029936,2]
[328175984,1717002645386,-577.57308,0.00029936,2]
[328175985,1717002645395,-577.57308,0.00029936,2]
[328175986,1717002645404,-155.605394,0.00029936,2]
[328175987,1717002645414,-155.605394,0.00029936,2]
[328175988,1717002645422,-659.841471,0.00029936,2]
[328175989,1717002645431,-659.841471,0.00029936,2]
[328175990,1717002645440,-1904.26935685,0.00029999,2]
[328175991,1717002645450,-253.908063,0.00029999,2]
[328175992,1717002645459,-365.530466,0.00029999,2]
[328175993,1717002645468,-151.0,0.00029999,2]
[328175994,1717002645477,-253.908063,0.00029999,2]
[328175995,1717002645486,-365.530466,0.00029999,2]
[328175996,1717002645495,-1959.86597,0.00029999,2]
[328175997,1717002645504,-1959.86597,0.00029999,2]
[328175998,1717002645513,-792.724988,0.00029999,2]
[328175999,1717002645522,-792.724988,0.00029999,2]
[328176000,1717002645531,-151.0,0.00029999,2]
[328176001,1717002645540,-151.0,0.00029999,2]
[328176002,1717002645549,-151.0,0.00029999,2]
[328176003,1717002645560,-151.0,0.00029999,2]
[328176004,1717002645569,-151.0,0.00029999,2]
[328176005,1717002645578,-151.0,0.00029999,2]
[328176006,1717002645587,-151.0,0.00029999,2]
[328176007,1717002645596,-151.0,0.00029999,2]
[328176008,1717002645606,-1682.971842,0.00029999,2]
[328176009,1717002645615,-1682.971842,0.00029999,2]
[328176010,1717002645624,-151.0,0.00029999,2]
[328176011,1717002645633,-151.08854,0.00029999,2]
[328176012,1717002645642,-151.08854,0.00029999,2]
[328176013,1717002645652,-386.947126,0.00029999,2]
[328176014,1717002645661,-386.947126,0.00029999,2]
[328176015,1717002645671,-982.209705,0.00029999,2]
[328176016,1717002645680,-982.209705,0.00029999,2]
[328176017,1717002645689,-151.0,0.00029999,2]
[328176018,1717002645698,-1138.614795,0.00029999,2]
[328176020,1717002645708,-1138.614795,0.00029999,2]
[328176021,1717002645717,-9477.56942792,0.0003,5]
[328176022,1717002645727,-151.0,0.0003,2]
[328176023,1717002645736,-203.288974,0.0003,2]
[328176024,1717002645746,-477.250238,0.0003,2]
[328176025,1717002645764,-477.250238,0.0003,2]
[328176026,1717002645775,-151.0,0.0003,2]
[328176027,1717002645784,-151.0,0.0003,2]
[328176028,1717002645794,-40097.274,0.0003,2]
[328176029,1717002645805,-253.908063,0.0003,2]
[328176030,1717002645814,-365.530466,0.0003,2]
[328176031,1717002645823,-253.908063,0.0003,2]
[328176032,1717002645832,-365.530466,0.0003,2]
[328176033,1717002645840,-1959.86597,0.0003,2]
[328176034,1717002645849,-1959.86597,0.0003,2]
[328176035,1717002645858,-792.724988,0.0003,2]
[328176036,1717002645868,-792.724988,0.0003,2]
[328176037,1717002645877,-151.0,0.0003,2]
[328176038,1717002645886,-151.0,0.0003,2]
[328176039,1717002645895,-151.0,0.0003,2]
[328176040,1717002645904,-151.0,0.0003,2]